Cogmind - Beta 16 @@@ ROGUE MODE // 2026.02.08 @ 04:53:06 Player: Fun Result: Destroyed by G-34 Mercenary with Small Laser Performance ------------- Evolutions (1) 500 Regions Visited (2) 400 Robots Destroyed (32) 160 Value Destroyed (886) 886 Prototype IDs (0) 0 Alien Tech Used (0) 0 Bonus (0) 0 TOTAL SCORE: 1946 Bonus ------- None Cogmind --------- Core Integrity 0/400 Matter 167/300 Energy 82/100 System Corruption 0% Temperature Cool (6) Movement Core (400) Ox7 Location -9/Materials Parts ------- > --- POWER (1) -------- (None) > --- PROPULSION (2) --- (None) > --- UTILITY (3) ------ Large Storage Unit > --- WEAPON (3) ------- Small Laser Hammer > --- INVENTORY (15) --- Heat Sink ECM Suite Hardened Light Armor Plating Tractor Beam Peak State ------------ > --- POWER ------------ Light Ion Engine > --- PROPULSION ------- Aluminum Leg Aluminum Leg > --- UTILITY ---------- Large Storage Unit Hardened Light Armor Plating Shield Generator > --- WEAPON ----------- Light Assault Rifle Mini Grenade Launcher Hammer > --- INVENTORY -------- ECM Suite Hardened Light Armor Plating Tractor Beam Small Laser [Rating: 12] Favorites ----------- Power Light Ion Engine Engine Light Ion Engine Propulsion Aluminum Leg Leg Aluminum Leg Utility Tractor Beam Device Tractor Beam Storage Small Storage Unit Protection Hardened Light Armor Plating Weapon Assault Rifle Energy Gun Small Laser Ballistic Gun Assault Rifle Launcher Mini Grenade Launcher Special Weapon Plasma Cutter Impact Weapon Hammer Build | -11 -10 -9 ------- Run | Yrd Mat Mat Slots Evolved 2 | . . 2 Power . | . . . Propulsion . | . . . Utility 1 | . . 1 Weapon 1 | . . 1 Parts Attached 26 | 5 6 15 Power 3 | 1 . 2 Engine 3 | 1 . 2 Core . | . . . Reactor . | . . . Propulsion 6 | 2 1 3 Treads . | . . . Leg 6 | 2 1 3 Wheel . | . . . Hover . | . . . Flight . | . . . Utility 8 | . 4 4 Device 4 | . 3 1 Storage 2 | . 1 1 Processor . | . . . Hackware . | . . . Protection 2 | . . 2 Artifact . | . . . Weapon 9 | 2 1 6 Energy Gun 2 | 1 . 1 Energy Cannon . | . . . Ballistic Gun 4 | 1 1 2 Ballistic Cannon . | . . . Launcher 1 | . . 1 Special Weapon 1 | . . 1 Impact Weapon 1 | . . 1 Slashing Weapon . | . . . Piercing Weapon . | . . . Special Melee Weapon . | . . . Unidentified Prototypes . | . . . Parts Lost 17 | . . 17 Power 3 | . . 3 Propulsion 5 | . . 5 Utility 2 | . . 2 Weapon 7 | . . 7 Highest Loss Streak 9 | . . 9 To Critical Strikes . | . . . Average Backups 5 | 1 4 6 Power 1 | . 1 . Propulsion . | . . . Utility 1 | . . 2 Weapon 2 | . 2 2 Tool/Special . | . . . Unused Backups 6 | . 4 2 Power . | . . . Propulsion 3 | . 2 1 Utility 1 | . . 1 Weapon 2 | . 2 . Tool/Special . | . . . Average Slot Usage (%) 89 | . 94 86 Engine 9 | . 14 7 Leg 21 | . 28 17 Device 14 | . 21 9 Storage 7 | . . 11 Protection 5 | . . 9 Energy Gun 4 | . 7 1 Ballistic Gun 19 | . 20 19 Launcher 1 | . . 2 Impact Weapon 4 | . . 7 Peak Build Rating 12 | 5 7 12 Average Rating 8 | 3 6 9 On Entrance 4 | . 5 7 Avg Prop Armor Cover (%) . | . . . Naked Turns . | . . . Heaviest Build 34 | 6 12 34 Greatest Support 20 | 20 20 20 Greatest Overweight (x) 3 | . . 3 Average Overweight (x) . | . . 1 Largest Inventory Capacity 15 | 5 8 15 Average Capacity 8 | 5 5 10 Most Carried 8 | 4 7 8 Average Carried 5 | 1 4 6 Final Capacity 15 | 5 8 15 Final Carried 7 | 4 7 4 Class Distribution -------------------- 80% | Mutant 9% | Tank 5% | Gunner 5% | Scavenger-Mutant Dominant Class ---------------- Mutant | -10/Materials Mutant | -9/Materials Resources | -11 -10 -9 ----------- Run | Yrd Mat Mat Matter Collected 619 | 256 132 231 Remotely 282 | . 132 150 Salvage Created 979 | 44 241 694 Parts 65 | 3 21 41 Haulers Intercepted . | . . . Recyclers Shooed . | . . . Parts Field Recycled . | . . . Retrieved Matter . | . . . Parts Self-Destructed . | . . . Prevented . | . . . Parts Restored . | . . . Kills | -11 -10 -9 ------- Run | Yrd Mat Mat Combat Hostiles Destroyed 29 | 1 9 19 Melee 1 | . . 1 Guns 22 | 1 9 12 AOE 5 | . . 5 Classes Destroyed 7 | 1 2 4 Builder 1 | . . 1 Recycler 1 | . . 1 Watcher 1 | . 1 . Swarmer 10 | . 6 4 Grunt 13 | 1 3 9 Brawler 1 | . . 1 Sentry 5 | . . 5 Best Kill Streak 5 | 1 3 5 Combat Bots Only 5 | 1 3 5 Max Kills in Single Turn 3 | 1 2 3 Gunslinging 1 | . 1 . Exploded 2 | . . 2 Melee 1 | . . 1 Uniques/NPCs Destroyed . | . . . Combat | -11 -10 -9 -------- Run | Yrd Mat Mat Hostile Shots Fired 216 | 1 34 181 Missed 56 | . 7 49 Hits 160 | 1 27 132 Melee 1 | . . 1 Projectile 159 | 1 27 131 Critical Strikes 2 | . . 2 Damage Taken 2013 | 10 247 1756 Core 435 | . 35 400 Absorbed by Shields 116 | . . 116 Core Remaining (%) 93 | 100 86 . Volleys Fired 89 | 2 21 66 Largest 3 | 2 2 3 Hottest 80 | 60 60 80 Shots Fired 175 | 4 41 130 Gun 163 | 4 41 118 Cannon . | . . . Launcher 6 | . . 6 Special 6 | . . 6 Kinetic 137 | 2 30 105 Thermal 32 | 2 11 19 Explosive 6 | . . 6 Electromagnetic . | . . . Robot Hit Streak 9 | 2 5 9 Robot Miss Streak 4 | . 3 4 Penetration Max . | . . . Secondary Targets 4 | . 1 3 Max Gunslinging Chain 1 | . 1 1 Shots Hit Robots 114 | 2 25 87 Core Hits 59 | 2 16 41 Critical Kills 1 | . . 1 Critical Parts Destroyed 1 | . . 1 Critical Strikes 2 | . . 2 Destroy 1 | . . 1 Smash 1 | . . 1 Melee Attacks 9 | . . 9 Impact 9 | . . 9 Slashing . | . . . Piercing . | . . . Sneak Attacks 2 | . . 2 Combat Hostiles . | . . . Follow-up Attacks . | . . . Damage Inflicted 2021 | 23 287 1711 Guns 1076 | 23 287 766 Cannons . | . . . Explosions 688 | . . 688 Melee 214 | . . 214 Ramming . | . . . Kinetic 900 | 11 209 680 Thermal 219 | 12 78 129 Explosive 688 | . . 688 Electromagnetic . | . . . Impact 214 | . . 214 Slashing . | . . . Piercing . | . . . Highest Corruption . | . . . Average Corruption . | . . . Corruption Purged . | . . . Corruption Blocked . | . . . Overload Shots . | . . . Overflow Damage 47 | . . 47 Projectiles . | . . . Explosions 26 | . . 26 Melee 21 | . . 21 Knockbacks . | . . . Impact . | . . . Kinetic . | . . . Secondary . | . . . Self-Inflicted Damage 197 | . . 197 Shots 4 | . . 4 Rammed . | . . . Targets Rammed . | . . . Kicked . | . . . Crushed . | . . . Highest Temperature 114 | 6 42 114 Average Temperature 35 | 6 27 37 Received Heat Transfer 673 | 6 54 613 Siege Activations . | . . . Martial Activations . | . . . Shielding Activations . | . . . Robots Disrupted . | . . . Combat Hostiles . | . . . Robots Corrupted 1 | . . 1 Combat Hostiles 1 | . . 1 Parts Fried 1 | . . 1 Impact Corruptions 2 | . . 2 Robots Melted . | . . . Combat Hostiles . | . . . Parts Melted . | . . . Heat Transferred 548 | 25 175 348 Parts Sabotaged . | . . . Parts Stolen . | . . . Parts Stripped . | . . . Power Chain Reactions . | . . . Alert | -11 -10 -9 ------- Run | Yrd Mat Mat Maximum Alert Level . | . . . Low Security (%) 100 | 100 100 100 Level 1 . | . . . Level 2 . | . . . Level 3 . | . . . Level 4 . | . . . Level 5 . | . . . High Security . | . . . Max Security . | . . . Peak Influence 144 | 20 120 144 Initial 39 | . . 39 Average 46 | 2 27 63 Influence Increases 844 | 21 228 595 Destroy 0b10 Robot/C 580 | 20 180 380 Destroy 0b10 Robot/NC 15 | . 5 10 Destroy Leader 152 | . 42 110 Successful Hack 1 | . 1 . Disable Machine 45 | . . 45 Destroy Structure 36 | 1 . 35 Lose Combat Pursuer 15 | . . 15 Influence Decreases 703 | 20 135 548 Entered New Map 56 | . 1 55 Time Decay 477 | 20 134 323 Lost Part 170 | . . 170 Squads Dispatched 5 | . 1 4 Investigation 1 | . 1 . Extermination . | . . . Reinforcement 4 | . . 4 Assault . | . . . Garrison . | . . . Intercept . | . . . Searches Triggered . | . . . Construction Impeded 1 | . . 1 Haulers Reinforced . | . . . Active Scanning Responses . | . . . Cargo Convoy Interrupts . | . . . Stealth | -11 -10 -9 --------- Run | Yrd Mat Mat Distress Signals 2 | . 1 1 Communications Jammed . | . . . Distress Signals . | . . . Times Spotted 42 | 1 12 29 Peak Tracking Total 6 | . 3 6 Tactical Retreats 2 | . 1 1 ECM-based Alert Blocks 2 | . 2 . Traps | -11 -10 -9 ------- Run | Yrd Mat Mat Traps Triggered . | . . . Indirectly . | . . . Trap Hack Attempts . | . . . Triggered . | . . . Disarmed . | . . . Reprogrammed . | . . . Reused . | . . . Traps Extracted . | . . . Installed . | . . . Triggered . | . . . Machines | -11 -10 -9 ---------- Run | Yrd Mat Mat Machines Disabled 3 | . . 3 Max in Single Turn 1 | . . 1 Machines Repaired . | . . . Machines Dismantled . | . . . Machines Sabotaged . | . . . Overloaded Fab Kills . | . . . Hacking | -11 -10 -9 --------- Run | Yrd Mat Mat Machines Accessed 2 | . 2 . Terminals . | . . . Fabricators . | . . . Repair Stations . | . . . Recycling Units 2 | . 2 . Scanalyzers . | . . . Garrison Access . | . . . Total Hacks 6 | . 6 . Successful 5 | . 5 . Failed 1 | . 1 . Catastrophic . | . . . Database Lockouts . | . . . Manual . | . . . Terminals . | . . . Fabricators . | . . . Repair Stations . | . . . Recycling Units 6 | . 6 . Scanalyzers . | . . . Garrison Access . | . . . Terminal Hacks . | . . . Fabricator Hacks . | . . . Repair Station Hacks . | . . . Recycling Unit Hacks 5 | . 5 . Recycle Component 4 | . 4 . Retrieve Matter 1 | . 1 . Scanalyzer . | . . . Garrison Access Hacks . | . . . Unauthorized Hacks . | . . . Terminals . | . . . Fabricators . | . . . Repair Stations . | . . . Recycling Units . | . . . Scanalyzers . | . . . Garrison Access . | . . . Data Cores Recovered . | . . . Used . | . . . Hacking Detections 1 | . 1 . Full Trace Events 1 | . 1 . Feedback Events . | . . . Feedback Blocked . | . . . Robot Schematics Acquired . | . . . Robots Built . | . . . Authchips . | . . . Time . | . . . Total Robot Build Rating . | . . . Part Schematics Acquired . | . . . Parts Built . | . . . Authchips . | . . . Time . | . . . Total Part Build Rating . | . . . Part Studies Acquired . | . . . Parts Repaired . | . . . Time . | . . . Parts Recycled 4 | . 4 . Recycled Matter . | . . . Retrieved Matter . | . . . Retrieved Components . | . . . Parts Scanalyzed . | . . . Part Schematics Acquired . | . . . Parts Damaged . | . . . Bothacking | -11 -10 -9 ------------ Run | Yrd Mat Mat Used RIF Installer . | . . . Robots Hacked . | . . . Non-combat . | . . . Combat . | . . . Robot Hacks Applied . | . . . Relay Couplers Released . | . . . Fabnet Peak Effective % . | . . . Robots Rewired . | . . . Allies Hacked . | . . . Hacks Repelled . | . . . Allies | -11 -10 -9 -------- Run | Yrd Mat Mat Total Allies . | . . . Largest Group . | . . . Highest-Rated Group . | . . . Highest-Rated Ally . | . . . Total Orders . | . . . Ally Attacks . | . . . Total Damage . | . . . Kills . | . . . Allies Corrupted . | . . . Allies Melted . | . . . Intel | -11 -10 -9 ------- Run | Yrd Mat Mat Active Infowar (turns) 155 | . 155 . ECM 155 | . 155 . Robot Analysis Total . | . . . Derelict Logs Recovered . | . . . Drone Launches . | . . . Drone Recoveries . | . . . Exploration | -11 -10 -9 ------------- Run | Yrd Mat Mat Turns Passed 1263 | 106 428 729 Spaces Moved 610 | 85 289 236 Core 22 | 22 . . Treads . | . . . Legs 588 | 63 289 236 Wheels . | . . . Hover . | . . . Flight . | . . . Fastest Speed 50 | 50 120 120 Average Speed 148 | 101 120 199 Slowest Speed 330 | 120 120 330 Overloaded Moves . | . . . Propulsion Burnouts . | . . . Robots Hopped . | . . . Potential Cave-ins . | . . . Cave-ins Triggered . | . . . Exploration Rate (%) 20 | 5 30 26 Regions Visited 2 Branch Regions . Pre-discovered Areas . | . . . Known Exits Taken . | . . . Unknown Exits Taken 2 | 1 1 . Scrap Searched . | . . . Spaces Dug . | . . . Terrain Destroyed 36 | . . 36 Melee . | . . . Projectile . | . . . AOE 36 | . . 36 Terrain Rammed . | . . . Walls Destroyed . | . . . Machines Disabled . | . . . Actions | -11 -10 -9 --------- Run | Yrd Mat Mat Total 799 | 100 331 368 Wait 24 | . 2 22 Move 608 | 84 288 236 Hop . | . . . Pick Up 31 | 9 10 12 Fast Attach 2 | . 2 . Attach 23 | 5 3 15 Detach 2 | . 1 1 Swap 5 | . 1 4 Drop 6 | . 3 3 Fire 89 | 2 21 66 Melee 9 | . . 9 Ram . | . . . Kick . | . . . Crush . | . . . Escape Stasis . | . . . Rewire . | . . . Trap . | . . . Miscellaneous . | . . . Route ------- -11/Scrapyard -10/Materials -9/Materials History --------- Turn | Location | Event 2 | -11/Scrapyard | Met Revision 17 70 | -11/Scrapyard | Discovered new exit (range 8) 107 | -11/Scrapyard | Entered Materials 303 | -10/Materials | Build established: Mutant 462 | -10/Materials | Discovered new exit (range 16) 535 | -10/Materials | Entered another Materials area 535 | -9/Materials | Evolved 2 slots: Utility x1, Weapon x1 1055 | -9/Materials | Lost 3 parts (1p1n1w) 1240 | -9/Materials | Core integrity fell below 50% 1262 | -9/Materials | Core integrity fell below 20% 1264 | -9/Materials | Destroyed by G-34 Mercenary with Small Laser Last Messages --------------- Repair Station disabled. U-05 Engineer lays Concrete. Hrd. Light Armor Plating destroyed. ALERT: Construction progress impeded, dispatching reinforcements to local area. C-30 ARC bursts open, deploying its payload. B-36 Bruiser unfolds itself. G-34 Mercenary unfolds itself. U-05 Engineer builds a Wall. Y-45 Defender destroyed. Backup Plating I tumbles out of repair station. Backup Propulsion I tumbles out of repair station. Aluminum Leg destroyed. Nuclear Reactor explodes. Mni. Grenade Launcher destroyed. Destroyed Mni. Grenade Launcher. B-36 Bruiser destroyed. K-01 Serf collects debris. U-05 Engineer builds a Wall. Map ----- +----------------------------------------------------+ | ???????????????# ""??# #?????????##!!!!## ==%%! | | ???????????????# """?# #?????????#! !# !### | | ???????????????# """?# #?????????# # ## | | ???????????????# """ # #######+### # ## | | ???????????????# # ##! | | ???????????????# """ + ! ##! | | ???????????????# """ # * ##! | | ???????????????# """ # [%""" ### | | ???????????????# ?# "" " # | | ???????????????# ?# " !!! """ # | | ?????????????? + ??# T !!! %[%#! | | ??????????????######??# " !!! =# | | ??????????????????????# / | | ??????????????????????# [ = # | | ??????????????????????#######+####### # | | ?????????????????????????## ! [#??# = #? | | ?????????????????????????# #??T """ #?? | | ?????????????????????????## ! #??# "T" #?? | | ??????????????????????????# |! #### ? #?? | | ??????????????????????????# / ? ??? ??? | | ???????????????????#####??# = #### ?????? | | ?????????????????### # #####+####???????####????? | | ?????????????????# # % #######???????????? | | ?????????????????# # +???????????? | | ?????????????????# = #######???????????? | | ????????????????# @ %= #?????????????????? | | ?????????????????# =% #?????????????????? | | ??????????????# * ??????????????? | | ??????????????### [= #????????????? | | ????????????????## ! k #????????????? | | ?????????????????# %g #????????????? | | ?????????????????## # #????????????? | | ??????????????????##########u ???????????? | | ???????????????????????????#u ??????????? | | ???????????????????????????? ?????????? | | ???????????????????????????? ###+## ?????????? | | ???????????????????????????? #????????????????? | | ???????????????????????????? ????????????????? | | ???????????????????????????? #????????????????? | | ???????????????????????????? ??????????????????? | | ?????????????????????????????????????????????????? | | ?????????????????????????????????????????????????? | | ?????????????????????????????????????????????????? | | ?????????????????????????????????????????????????? | | ?????????????????????????????????????????????????? | | ?????????????????????????????????????????????????? | | ?????????????????????????????????????????????????? | | ?????????????????????????????????????????????????? | | ?????????????????????????????????????????????????? | | ?????????????????????????????????????????????????? | +----------------------------------------------------+ Best States ------------- Heat Dissipation 35 Energy Generation 10 Energy Capacity 250 Matter Stores 300 Matter Capacity 300 Sight Range 16 Terrain Scan Density 10 ECM Strength 1 Armor Coverage 300 Evasion (%) 55 Item Schematics ----------------- None Robot Schematics ------------------ None Fabricated ------------ Nothing Repaired ---------- Nothing Studied --------- None Alien Tech Used ----------------- None Achievements -------------- Use The Force Challenges ------------ None Game ------ Seed LargeTeleporterDriveblaster Manual? 0 Play Time 00:19:54 Cumulative 2.7 hours Start 2026.02.07 @ 19:12:41 End 2026.02.08 @ 04:53:06 Sessions 2 Manual Loads 0 Difficulty Rogue Special Mode None Game No. 3 Rogue 3 Adventurer 0 Explorer 0 Win Type - Total 0 Types 0/0/0/0/0/0/0/0/0/0 Lore% 2 Gallery% 7 Achievement% 10 Wizard Run 0 Options --------- Layout 1 ASCII 0 Keyboard 0 Movement Mouse Keybinds 0 Fullscreen 1 Font 24/Smallcaps Map View 50x35 Zoom Use 0% Tactical HUD 0 Map Filters NONE Filters NONE Steam 1 RUN: b516d80e-e6f4-4c11-8e25-b017d2a63344